[Event "*** SCC Grand Prix: Titled Tuesday Blitz"]
[Site "Chess.com"]
[Date "2020.06.09"]
[Round "1"]
[White "Vesper2018"]
[Black "GM_Buhmann"]
[Result "0-1"]
[WhiteElo "2399"]
[BlackElo "2741"]
[TimeControl "180+1"]
[EndTime "9:07:26 PDT"]
[Termination "GM_Buhmann won on time"]

1. e4 {[%clk 0:03:00.8]} 1... e5 {[%clk 0:02:59.7]} 2. Nf3 {[%clk 0:02:59.5]}
2... Nc6 {[%clk 0:02:59.1]} 3. Bc4 {[%clk 0:02:59.5]} 3... Nf6 {[%clk
0:02:58.7]} 4. d3 {[%clk 0:02:59.4]} 4... Be7 {[%clk 0:02:53.4]} 5. c3 {[%clk
0:02:54.8]} 5... O-O {[%clk 0:02:52.7]} 6. O-O {[%clk 0:02:54.4]} 6... d5 {[%clk
0:02:52.8]} 7. exd5 {[%clk 0:02:52.8]} 7... Nxd5 {[%clk 0:02:53]} 8. Re1 {[%clk
0:02:52.6]} 8... Bg4 {[%clk 0:02:52.3]} 9. h3 {[%clk 0:02:51.8]} 9... Bh5 {[%clk
0:02:52.3]} 10. Bb3 {[%clk 0:02:30.5]} 10... Kh8 {[%clk 0:02:39.2]} 11. g4
{[%clk 0:02:20.7]} 11... Bg6 {[%clk 0:02:38.8]} 12. Nxe5 {[%clk 0:02:20.7]}
12... Nxe5 {[%clk 0:02:39.2]} 13. Rxe5 {[%clk 0:02:20.8]} 13... c6 {[%clk
0:02:39.1]} 14. Bxd5 {[%clk 0:01:59.8]} 14... cxd5 {[%clk 0:02:19.1]} 15. Qf3
{[%clk 0:01:59.2]} 15... f5 {[%clk 0:02:10.5]} 16. Rxd5 {[%clk 0:01:48.7]} 16...
Qb6 {[%clk 0:02:02.1]} 17. g5 {[%clk 0:01:41]} 17... f4 {[%clk 0:01:59.6]} 18.
Nd2 {[%clk 0:01:27.5]} 18... Qe6 {[%clk 0:01:52.1]} 19. Nf1 {[%clk 0:01:12.1]}
19... Bh5 {[%clk 0:01:41.2]} 20. Qe4 {[%clk 0:00:32.2]} 20... Qxh3 {[%clk
0:01:39.9]} 21. Qg2 {[%clk 0:00:31.9]} 21... Qe6 {[%clk 0:01:35.2]} 22. Qe4
{[%clk 0:00:30.5]} 22... Qg4+ {[%clk 0:01:21.8]} 23. Qg2 {[%clk 0:00:29.8]}
23... Qe2 {[%clk 0:01:14.9]} 24. Nh2 {[%clk 0:00:20.6]} 24... Rad8 {[%clk
0:01:09.6]} 25. Rxd8 {[%clk 0:00:19.4]} 25... Rxd8 {[%clk 0:01:07.7]} 26. d4
{[%clk 0:00:19.2]} 26... Bd6 {[%clk 0:01:01.1]} 27. f3 {[%clk 0:00:18.6]} 27...
Qe6 {[%clk 0:00:57]} 28. Bd2 {[%clk 0:00:17.8]} 28... b5 {[%clk 0:00:49.9]} 29.
b3 {[%clk 0:00:17.7]} 29... Qd5 {[%clk 0:00:47.7]} 30. Re1 {[%clk 0:00:16.8]}
30... b4 {[%clk 0:00:48]} 31. Qf2 {[%clk 0:00:15.6]} 31... bxc3 {[%clk
0:00:47.5]} 32. Bxc3 {[%clk 0:00:15.4]} 32... Qxg5+ {[%clk 0:00:47.3]} 33. Qg2
{[%clk 0:00:15.8]} 33... Qd5 {[%clk 0:00:46]} 34. Ng4 {[%clk 0:00:15.9]} 34...
Re8 {[%clk 0:00:43.7]} 35. Ne5 {[%clk 0:00:15.4]} 35... Kg8 {[%clk 0:00:41.6]}
36. Qg5 {[%clk 0:00:11.7]} 36... Bxe5 {[%clk 0:00:38.1]} 37. Rxe5 {[%clk
0:00:08.7]} 37... Rxe5 {[%clk 0:00:38.1]} 38. Qxe5 {[%clk 0:00:07.2]} 38... Qxe5
{[%clk 0:00:32.1]} 39. dxe5 {[%clk 0:00:07.4]} 39... Bxf3 {[%clk 0:00:32.2]} 40.
e6 {[%clk 0:00:03.7]} 40... Bd5 {[%clk 0:00:31.3]} 41. e7 {[%clk 0:00:03.9]}
41... Kf7 {[%clk 0:00:31.9]} 42. Bb4 {[%clk 0:00:02.6]} 42... g5 {[%clk
0:00:30.8]} 43. Bd6 {[%clk 0:00:01.7]} 43... a6 {[%clk 0:00:28.1]} 0-1

[Event "*** SCC Grand Prix: Titled Tuesday Blitz"]
[Site "Chess.com"]
[Date "2020.06.09"]
[Round "1"]
[White "Radzio1987"]
[Black "bsnsun"]
[Result "1-0"]
[WhiteElo "2905"]
[BlackElo "2447"]
[TimeControl "180+1"]
[EndTime "9:07:27 PDT"]
[Termination "Radzio1987 won by resignation"]

1. d4 {[%clk 0:03:00.3]} 1... Nf6 {[%clk 0:02:56.6]} 2. c4 {[%clk 0:03:00.1]}
2... e6 {[%clk 0:02:55.2]} 3. Nf3 {[%clk 0:02:58.9]} 3... d5 {[%clk 0:02:54.3]}
4. Nc3 {[%clk 0:02:59.2]} 4... dxc4 {[%clk 0:02:53.7]} 5. e3 {[%clk 0:02:57.4]}
5... a6 {[%clk 0:02:51.1]} 6. a4 {[%clk 0:02:55.2]} 6... c5 {[%clk 0:02:33.6]}
7. Bxc4 {[%clk 0:02:54.3]} 7... cxd4 {[%clk 0:02:31.3]} 8. exd4 {[%clk
0:02:55.2]} 8... Nc6 {[%clk 0:02:28.7]} 9. O-O {[%clk 0:02:55]} 9... Be7 {[%clk
0:02:28.7]} 10. Bg5 {[%clk 0:02:53.7]} 10... O-O {[%clk 0:02:24.4]} 11. Re1
{[%clk 0:02:53.8]} 11... Nb4 {[%clk 0:02:23.6]} 12. Ne5 {[%clk 0:02:49.1]} 12...
Bd7 {[%clk 0:02:11.6]} 13. Qe2 {[%clk 0:02:36.9]} 13... Nbd5 {[%clk 0:01:56.8]}
14. Nxd5 {[%clk 0:02:17.3]} 14... Nxd5 {[%clk 0:01:27.7]} 15. Bxd5 {[%clk
0:02:16.3]} 15... Bxg5 {[%clk 0:01:04.2]} 16. Bxb7 {[%clk 0:02:15.7]} 16... Rb8
{[%clk 0:00:53.5]} 17. Bxa6 {[%clk 0:02:15.4]} 17... Rb4 {[%clk 0:00:37]} 18.
Bb5 {[%clk 0:01:57.7]} 18... Bxb5 {[%clk 0:00:36.7]} 19. axb5 {[%clk 0:01:57.6]}
19... Qd5 {[%clk 0:00:29.1]} 20. Ra7 {[%clk 0:01:13.4]} 20... Rxb5 {[%clk
0:00:27.2]} 21. Rd7 {[%clk 0:01:11.5]} 21... Qb3 {[%clk 0:00:22.3]} 22. Qh5
{[%clk 0:01:06.7]} 22... Bf6 {[%clk 0:00:18.3]} 23. Rxf7 {[%clk 0:01:04]} 23...
Bxe5 {[%clk 0:00:09.2]} 24. Rxf8+ {[%clk 0:01:03.2]} 24... Kxf8 {[%clk
0:00:09.7]} 25. dxe5 {[%clk 0:01:03.6]} 25... Qxb2 {[%clk 0:00:09.5]} 26. Qxh7
{[%clk 0:00:56.3]} 26... Qxe5 {[%clk 0:00:09.3]} 27. Rd1 {[%clk 0:00:52]} 27...
Qf6 {[%clk 0:00:05.1]} 28. Qe4 {[%clk 0:00:49.9]} 28... Qf5 {[%clk 0:00:03.5]}
29. Qa8+ {[%clk 0:00:46.4]} 29... Kf7 {[%clk 0:00:03.3]} 30. h3 {[%clk
0:00:46.6]} 30... Kg6 {[%clk 0:00:02.5]} 31. Qc6 {[%clk 0:00:37.1]} 31... Rb2
{[%clk 0:00:01.5]} 32. Rf1 {[%clk 0:00:34]} 32... Kh7 {[%clk 0:00:02.4]} 33. Qc3
{[%clk 0:00:33.3]} 33... Rc2 {[%clk 0:00:03.1]} 34. Qg3 {[%clk 0:00:33.2]} 34...
Rc5 {[%clk 0:00:03.2]} 35. Re1 {[%clk 0:00:33.1]} 35... Rc2 {[%clk 0:00:03.8]}
36. Re5 {[%clk 0:00:30.3]} 36... Rc1+ {[%clk 0:00:04.1]} 37. Kh2 {[%clk
0:00:30.1]} 37... Qf6 {[%clk 0:00:05]} 38. Qe3 {[%clk 0:00:24.5]} 38... Rc2
{[%clk 0:00:04.2]} 39. Qe4+ {[%clk 0:00:24.6]} 39... Qg6 {[%clk 0:00:03.6]} 40.
Rh5+ {[%clk 0:00:17.8]} 40... Kg8 {[%clk 0:00:01.4]} 41. Qxg6 {[%clk 0:00:17.8]}
1-0

[Event "*** SCC Grand Prix: Titled Tuesday Blitz"]
[Site "Chess.com"]
[Date "2020.06.09"]
[Round "1"]
[White "eightbyeightchess"]
[Black "Shoooting_Star"]
[Result "0-1"]
[WhiteElo "2393"]
[BlackElo "2741"]
[TimeControl "180+1"]
[EndTime "9:07:27 PDT"]
[Termination "Shoooting_Star won by resignation"]

1. e4 {[%clk 0:03:00.9]} 1... c5 {[%clk 0:02:59.8]} 2. Nf3 {[%clk 0:02:59.8]}
2... d6 {[%clk 0:03:00.4]} 3. d4 {[%clk 0:02:59.8]} 3... cxd4 {[%clk 0:03:01.3]}
4. Qxd4 {[%clk 0:03:00.1]} 4... Nf6 {[%clk 0:03:02.2]} 5. Bg5 {[%clk 0:02:59.4]}
5... Nc6 {[%clk 0:03:02]} 6. Bb5 {[%clk 0:02:59.3]} 6... Bd7 {[%clk 0:03:02]} 7.
Bxc6 {[%clk 0:02:59.2]} 7... Bxc6 {[%clk 0:03:02.9]} 8. Nc3 {[%clk 0:02:59.1]}
8... e6 {[%clk 0:03:02.6]} 9. O-O-O {[%clk 0:02:58.6]} 9... Be7 {[%clk 0:03:03]}
10. Qd3 {[%clk 0:02:56.8]} 10... O-O {[%clk 0:03:02.9]} 11. Nd4 {[%clk
0:02:56.8]} 11... Qc7 {[%clk 0:03:01.9]} 12. f4 {[%clk 0:02:56.6]} 12... Rfd8
{[%clk 0:03:01.8]} 13. f5 {[%clk 0:02:56.6]} 13... e5 {[%clk 0:02:59.1]} 14.
Bxf6 {[%clk 0:02:50]} 14... Bxf6 {[%clk 0:02:49.5]} 15. Nxc6 {[%clk 0:02:49.8]}
15... bxc6 {[%clk 0:02:50.4]} 16. h4 {[%clk 0:02:46.5]} 16... Rac8 {[%clk
0:02:42.9]} 17. g4 {[%clk 0:02:42.2]} 17... d5 {[%clk 0:02:42.5]} 18. g5 {[%clk
0:02:42.1]} 18... Be7 {[%clk 0:02:42.2]} 19. f6 {[%clk 0:02:38.1]} 19... gxf6
{[%clk 0:02:38.5]} 20. gxf6 {[%clk 0:02:37.2]} 20... Bxf6 {[%clk 0:02:39.4]} 21.
Rdf1 {[%clk 0:01:48.8]} 21... Bg7 {[%clk 0:02:35.4]} 22. h5 {[%clk 0:01:40.6]}
22... Bh6+ {[%clk 0:02:26.1]} 23. Kb1 {[%clk 0:01:39.8]} 23... Rb8 {[%clk
0:02:04]} 24. exd5 {[%clk 0:01:04.3]} 24... Qb7 {[%clk 0:01:55.4]} 25. b3 {[%clk
0:00:51.6]} 25... cxd5 {[%clk 0:01:52.3]} 26. Qg3+ {[%clk 0:00:51.1]} 26... Kf8
{[%clk 0:01:52.7]} 27. Rhg1 {[%clk 0:00:41.4]} 27... Bf4 {[%clk 0:01:27.6]} 28.
Qg7+ {[%clk 0:00:35.6]} 28... Ke7 {[%clk 0:01:26]} 29. Rxf4 {[%clk 0:00:20.4]}
29... exf4 {[%clk 0:01:11.9]} 30. Qe5+ {[%clk 0:00:19.5]} 30... Kd7 {[%clk
0:01:10.8]} 31. Nxd5 {[%clk 0:00:19.8]} 31... Kc6 {[%clk 0:01:07.3]} 32. Ne7+
{[%clk 0:00:17.4]} 32... Kb6 {[%clk 0:01:07.4]} 33. Re1 {[%clk 0:00:12.6]} 33...
a6 {[%clk 0:01:04.6]} 34. a4 {[%clk 0:00:12.6]} 34... Ka7 {[%clk 0:01:04.3]} 35.
Qxf4 {[%clk 0:00:12.7]} 35... Rd7 {[%clk 0:01:00.9]} 36. Nf5 {[%clk 0:00:12.6]}
36... Rbd8 {[%clk 0:01:00.6]} 37. Kb2 {[%clk 0:00:11.6]} 37... Qc6 {[%clk
0:00:58.9]} 38. h6 {[%clk 0:00:10.7]} 38... Qf6+ {[%clk 0:00:58.5]} 39. Qe5
{[%clk 0:00:10.3]} 39... Qxe5+ {[%clk 0:00:52.7]} 40. Rxe5 {[%clk 0:00:11.2]}
40... Rd5 {[%clk 0:00:53.5]} 41. Re7+ {[%clk 0:00:09.9]} 41... R8d7 {[%clk
0:00:54]} 42. Rxd7+ {[%clk 0:00:08.3]} 42... Rxd7 {[%clk 0:00:54.9]} 43. c4
{[%clk 0:00:07.7]} 43... a5 {[%clk 0:00:48.4]} 44. Kc3 {[%clk 0:00:08]} 44...
Kb6 {[%clk 0:00:48.8]} 45. Nd4 {[%clk 0:00:07.3]} 45... Kc5 {[%clk 0:00:48.2]}
46. Nf3 {[%clk 0:00:06.5]} 46... Rd6 {[%clk 0:00:47.2]} 47. Ng5 {[%clk
0:00:06.8]} 47... Rxh6 {[%clk 0:00:47.5]} 48. Nxf7 {[%clk 0:00:07.1]} 48... Rh3+
{[%clk 0:00:48]} 49. Kc2 {[%clk 0:00:07.1]} 49... Kb4 {[%clk 0:00:47.6]} 50. Ng5
{[%clk 0:00:06.2]} 50... Rh2+ {[%clk 0:00:47.8]} 51. Kd3 {[%clk 0:00:06.4]}
51... Kxb3 {[%clk 0:00:48]} 52. c5 {[%clk 0:00:06.9]} 52... Kxa4 {[%clk
0:00:45.1]} 53. c6 {[%clk 0:00:06.8]} 53... Rh6 {[%clk 0:00:45.6]} 54. c7 {[%clk
0:00:05.6]} 54... Rc6 {[%clk 0:00:46.2]} 55. Nxh7 {[%clk 0:00:06.2]} 55... Rxc7
{[%clk 0:00:46.2]} 56. Ng5 {[%clk 0:00:07.1]} 56... Kb4 {[%clk 0:00:46]} 57. Ne4
{[%clk 0:00:07.1]} 57... a4 {[%clk 0:00:44.9]} 58. Nd2 {[%clk 0:00:07.4]} 58...
a3 {[%clk 0:00:45]} 0-1

[Event "*** SCC Grand Prix: Titled Tuesday Blitz"]
[Site "Chess.com"]
[Date "2020.06.09"]
[Round "1"]
[White "Kolle05"]
[Black "Volodar_Murzin"]
[Result "0-1"]
[WhiteElo "2374"]
[BlackElo "2717"]
[TimeControl "180+1"]
[EndTime "9:07:28 PDT"]
[Termination "Volodar_Murzin won on time"]

1. e4 {[%clk 0:02:59.6]} 1... c6 {[%clk 0:02:58.4]} 2. Nc3 {[%clk 0:02:58.7]}
2... d5 {[%clk 0:02:58.8]} 3. Nf3 {[%clk 0:02:58.6]} 3... Bg4 {[%clk 0:02:58.2]}
4. h3 {[%clk 0:02:58.1]} 4... Bxf3 {[%clk 0:02:58.8]} 5. Qxf3 {[%clk 0:02:59]}
5... Nf6 {[%clk 0:02:59.4]} 6. Be2 {[%clk 0:02:58.1]} 6... e6 {[%clk 0:02:59.4]}
7. O-O {[%clk 0:02:57.1]} 7... Nbd7 {[%clk 0:02:59.5]} 8. d4 {[%clk 0:02:56.6]}
8... dxe4 {[%clk 0:02:59.2]} 9. Nxe4 {[%clk 0:02:57.5]} 9... Nxe4 {[%clk
0:03:00.1]} 10. Qxe4 {[%clk 0:02:58.4]} 10... Nf6 {[%clk 0:03:01]} 11. Qd3
{[%clk 0:02:59]} 11... Bd6 {[%clk 0:03:01.2]} 12. c3 {[%clk 0:02:59.1]} 12...
Qc7 {[%clk 0:03:00.3]} 13. Bf3 {[%clk 0:02:51.8]} 13... O-O {[%clk 0:02:52.5]}
14. Be3 {[%clk 0:02:48.7]} 14... Nd5 {[%clk 0:02:50.9]} 15. c4 {[%clk
0:02:39.2]} 15... Nxe3 {[%clk 0:02:43.5]} 16. Qxe3 {[%clk 0:02:40.1]} 16... Rad8
{[%clk 0:02:42.6]} 17. Rad1 {[%clk 0:02:36.8]} 17... a5 {[%clk 0:02:33]} 18.
Rfe1 {[%clk 0:02:35.3]} 18... a4 {[%clk 0:02:27.2]} 19. Be4 {[%clk 0:02:34.5]}
19... Rd7 {[%clk 0:02:21.3]} 20. Bc2 {[%clk 0:02:32.5]} 20... Qa5 {[%clk
0:02:18]} 21. Qe4 {[%clk 0:02:23.3]} 21... g6 {[%clk 0:02:15.6]} 22. d5 {[%clk
0:02:18.7]} 22... cxd5 {[%clk 0:01:49.7]} 23. cxd5 {[%clk 0:02:19.6]} 23... exd5
{[%clk 0:01:50.1]} 24. Qxa4 {[%clk 0:02:17.7]} 24... Qc7 {[%clk 0:01:44.2]} 25.
Bb3 {[%clk 0:02:13.1]} 25... Bc5 {[%clk 0:01:39.8]} 26. Qb5 {[%clk 0:01:46.3]}
26... Rfd8 {[%clk 0:01:34.3]} 27. Re2 {[%clk 0:01:39.2]} 27... b6 {[%clk
0:01:22.8]} 28. Qd3 {[%clk 0:01:11.1]} 28... Qf4 {[%clk 0:01:17.3]} 29. Qd2
{[%clk 0:01:01.8]} 29... Qf6 {[%clk 0:01:13.6]} 30. Rde1 {[%clk 0:00:47.3]}
30... Kg7 {[%clk 0:01:08.4]} 31. Re5 {[%clk 0:00:39.6]} 31... d4 {[%clk
0:00:58.2]} 32. Qd3 {[%clk 0:00:37.9]} 32... Re7 {[%clk 0:00:47.8]} 33. Rxe7
{[%clk 0:00:37.1]} 33... Bxe7 {[%clk 0:00:48.7]} 34. Re4 {[%clk 0:00:27.8]}
34... h5 {[%clk 0:00:46.9]} 35. g3 {[%clk 0:00:25.1]} 35... Qf5 {[%clk
0:00:37.6]} 36. g4 {[%clk 0:00:09.3]} 36... hxg4 {[%clk 0:00:36.1]} 37. hxg4
{[%clk 0:00:10.2]} 37... Qf6 {[%clk 0:00:35.7]} 38. Re2 {[%clk 0:00:02.7]} 38...
Bd6 {[%clk 0:00:33.7]} 39. Re4 {[%clk 0:00:02.2]} 39... Be5 {[%clk 0:00:27]} 40.
Kf1 {[%clk 0:00:02.2]} 40... Rh8 {[%clk 0:00:24.4]} 41. Ke2 {[%clk 0:00:02.1]}
41... Rh2 {[%clk 0:00:22.4]} 0-1

[Event "*** SCC Grand Prix: Titled Tuesday Blitz"]
[Site "Chess.com"]
[Date "2020.06.09"]
[Round "1"]
[White "alexsergeyev"]
[Black "BlackBoarder"]
[Result "1/2-1/2"]
[WhiteElo "2344"]
[BlackElo "2650"]
[TimeControl "180+1"]
[EndTime "9:07:31 PDT"]
[Termination "Game drawn by repetition"]

1. d4 {[%clk 0:02:58.6]} 1... e6 {[%clk 0:02:56.6]} 2. c4 {[%clk 0:02:57.7]}
2... Nf6 {[%clk 0:02:56.3]} 3. Nf3 {[%clk 0:02:56.4]} 3... d5 {[%clk 0:02:55.1]}
4. Nc3 {[%clk 0:02:55.9]} 4... Bb4 {[%clk 0:02:55]} 5. Bg5 {[%clk 0:02:53.9]}
5... h6 {[%clk 0:02:51.7]} 6. Bxf6 {[%clk 0:02:52.8]} 6... Qxf6 {[%clk
0:02:52.6]} 7. e3 {[%clk 0:02:52.5]} 7... O-O {[%clk 0:02:51.5]} 8. Bd3 {[%clk
0:02:50.4]} 8... dxc4 {[%clk 0:02:37.6]} 9. Bxc4 {[%clk 0:02:49.5]} 9... c5
{[%clk 0:02:37.9]} 10. O-O {[%clk 0:02:48.3]} 10... cxd4 {[%clk 0:02:27.2]} 11.
Nxd4 {[%clk 0:02:46.2]} 11... Bxc3 {[%clk 0:02:18.9]} 12. bxc3 {[%clk 0:02:45]}
12... Bd7 {[%clk 0:02:18.7]} 13. a4 {[%clk 0:02:35.4]} 13... Nc6 {[%clk
0:02:16.1]} 14. a5 {[%clk 0:02:19.9]} 14... Rac8 {[%clk 0:02:04.1]} 15. Qb3
{[%clk 0:02:12.3]} 15... Nxd4 {[%clk 0:01:33.3]} 16. cxd4 {[%clk 0:02:10.1]}
16... Bc6 {[%clk 0:01:33.4]} 17. a6 {[%clk 0:01:57.9]} 17... b6 {[%clk
0:01:22.4]} 18. d5 {[%clk 0:01:51.3]} 18... exd5 {[%clk 0:01:18.9]} 19. Bxd5
{[%clk 0:01:50.8]} 19... Rfd8 {[%clk 0:01:10.5]} 20. Bxc6 {[%clk 0:01:36.1]}
20... Qxc6 {[%clk 0:01:11.4]} 21. g3 {[%clk 0:01:33.1]} 21... Qc4 {[%clk
0:00:47.2]} 22. Qxc4 {[%clk 0:01:18.9]} 22... Rxc4 {[%clk 0:00:48.1]} 23. Rfd1
{[%clk 0:01:18.1]} 23... Rxd1+ {[%clk 0:00:47.1]} 24. Rxd1 {[%clk 0:01:17.8]}
24... Ra4 {[%clk 0:00:47.5]} 25. Rd8+ {[%clk 0:01:17.5]} 25... Kh7 {[%clk
0:00:47.9]} 26. Rd7 {[%clk 0:01:17.9]} 26... Rxa6 {[%clk 0:00:48.2]} 27. Rxf7
{[%clk 0:01:18.3]} 27... Ra1+ {[%clk 0:00:38.2]} 28. Kg2 {[%clk 0:01:17.5]}
28... a5 {[%clk 0:00:38.7]} 29. Rb7 {[%clk 0:01:15.2]} 29... Rb1 {[%clk
0:00:38.2]} 30. Ra7 {[%clk 0:01:13.6]} 30... Rb4 {[%clk 0:00:37.8]} 31. f4
{[%clk 0:01:13.1]} 31... Kg6 {[%clk 0:00:34.2]} 32. g4 {[%clk 0:01:11.4]} 32...
a4 {[%clk 0:00:33]} 33. h4 {[%clk 0:01:06.3]} 33... b5 {[%clk 0:00:30.5]} 34.
h5+ {[%clk 0:01:01.3]} 34... Kf6 {[%clk 0:00:29]} 35. Kf3 {[%clk 0:01:00.3]}
35... Rb3 {[%clk 0:00:27.4]} 36. Ra6+ {[%clk 0:00:53.9]} 36... Ke7 {[%clk
0:00:27]} 37. Ra7+ {[%clk 0:00:51.6]} 37... Kf6 {[%clk 0:00:25.3]} 38. Ra6+
{[%clk 0:00:51.3]} 38... Kf7 {[%clk 0:00:25.6]} 39. Ra7+ {[%clk 0:00:50.1]}
39... Kg8 {[%clk 0:00:25.4]} 40. g5 {[%clk 0:00:48.3]} 40... hxg5 {[%clk
0:00:22.2]} 41. fxg5 {[%clk 0:00:48.3]} 41... Kf8 {[%clk 0:00:09.3]} 42. Ra8+
{[%clk 0:00:44.5]} 42... Kf7 {[%clk 0:00:09.1]} 43. Ra7+ {[%clk 0:00:43.9]}
43... Kf8 {[%clk 0:00:08.9]} 44. Ra8+ {[%clk 0:00:43.7]} 44... Kf7 {[%clk
0:00:08.3]} 45. Ra7+ {[%clk 0:00:43.5]} 45... Kg8 {[%clk 0:00:05.3]} 46. g6
{[%clk 0:00:42.6]} 46... Kf8 {[%clk 0:00:05.7]} 47. Rf7+ {[%clk 0:00:41.6]}
47... Kg8 {[%clk 0:00:06.1]} 48. Ra7 {[%clk 0:00:40.1]} 48... Kf8 {[%clk
0:00:06.3]} 49. Rf7+ {[%clk 0:00:38]} 49... Kg8 {[%clk 0:00:06.3]} 50. Ra7
{[%clk 0:00:36.3]} 1/2-1/2

[Event "*** SCC Grand Prix: Titled Tuesday Blitz"]
[Site "Chess.com"]
[Date "2020.06.09"]
[Round "1"]
[White "chesslh19"]
[Black "Arkady_Gitelson"]
[Result "1/2-1/2"]
[WhiteElo "2108"]
[BlackElo "2502"]
[TimeControl "180+1"]
[EndTime "9:07:34 PDT"]
[Termination "Game drawn by agreement"]

1. e4 {[%clk 0:03:00.2]} 1... c5 {[%clk 0:02:59.5]} 2. Nf3 {[%clk 0:02:59.7]}
2... Nc6 {[%clk 0:03:00]} 3. d4 {[%clk 0:03:00.2]} 3... cxd4 {[%clk 0:03:00.9]}
4. Nxd4 {[%clk 0:03:01]} 4... e5 {[%clk 0:03:01]} 5. Nb5 {[%clk 0:03:00.5]} 5...
d6 {[%clk 0:03:00.8]} 6. N1c3 {[%clk 0:03:01.1]} 6... a6 {[%clk 0:03:00.8]} 7.
Na3 {[%clk 0:03:01.4]} 7... b5 {[%clk 0:03:01.4]} 8. Nd5 {[%clk 0:03:01.7]} 8...
Nce7 {[%clk 0:03:02]} 9. c4 {[%clk 0:03:02]} 9... Nxd5 {[%clk 0:03:01]} 10. exd5
{[%clk 0:03:02.3]} 10... bxc4 {[%clk 0:03:00.4]} 11. Nxc4 {[%clk 0:02:58.8]}
11... Nf6 {[%clk 0:02:59.5]} 12. Be3 {[%clk 0:02:44.8]} 12... Rb8 {[%clk
0:02:57.7]} 13. Be2 {[%clk 0:02:41]} 13... Be7 {[%clk 0:02:56.6]} 14. O-O {[%clk
0:02:36.1]} 14... O-O {[%clk 0:02:57]} 15. a4 {[%clk 0:02:35.8]} 15... Bb7
{[%clk 0:02:46]} 16. Nb6 {[%clk 0:02:30]} 16... Nd7 {[%clk 0:02:44.8]} 17. a5
{[%clk 0:02:26.5]} 17... f5 {[%clk 0:02:40.9]} 18. f3 {[%clk 0:01:51.8]} 18...
f4 {[%clk 0:02:39.4]} 19. Bf2 {[%clk 0:01:51.4]} 19... Nf6 {[%clk 0:02:23.2]}
20. b4 {[%clk 0:01:26.8]} 20... Qe8 {[%clk 0:02:19.6]} 21. Rc1 {[%clk
0:01:12.5]} 21... Bd8 {[%clk 0:02:17.6]} 22. Qb3 {[%clk 0:01:01.8]} 22... Bxb6
{[%clk 0:02:11.6]} 23. Bxb6 {[%clk 0:01:00.5]} 23... Bxd5 {[%clk 0:02:12.2]} 24.
Bc4 {[%clk 0:00:49.2]} 24... Qe6 {[%clk 0:02:10.6]} 25. Rfd1 {[%clk 0:00:41.3]}
25... Bxc4 {[%clk 0:02:09.2]} 26. Qxc4 {[%clk 0:00:41.1]} 26... Qxc4 {[%clk
0:01:58]} 27. Rxc4 {[%clk 0:00:42]} 27... d5 {[%clk 0:01:58.5]} 28. Rc6 {[%clk
0:00:35.2]} 28... e4 {[%clk 0:01:57.5]} 29. Bc5 {[%clk 0:00:31.8]} 29... Rfe8
{[%clk 0:01:48.4]} 30. fxe4 {[%clk 0:00:25.5]} 30... dxe4 {[%clk 0:01:47.6]} 31.
Rxa6 {[%clk 0:00:25.2]} 31... e3 {[%clk 0:01:45]} 32. Re1 {[%clk 0:00:19.4]}
32... Ne4 {[%clk 0:01:43.3]} 33. Rc6 {[%clk 0:00:16.4]} 33... Rec8 {[%clk
0:01:27.6]} 34. Rxc8+ {[%clk 0:00:16.1]} 34... Rxc8 {[%clk 0:01:28.5]} 35. g3
{[%clk 0:00:14.1]} 35... g5 {[%clk 0:01:25]} 36. gxf4 {[%clk 0:00:13.9]} 36...
gxf4 {[%clk 0:01:25.9]} 37. Kg2 {[%clk 0:00:14.2]} 37... Nxc5 {[%clk 0:01:23]}
38. bxc5 {[%clk 0:00:14.1]} 38... Rxc5 {[%clk 0:01:22]} 39. Kf3 {[%clk 0:00:15]}
39... Rxa5 {[%clk 0:01:16.4]} 40. Kxf4 {[%clk 0:00:14.8]} 40... Ra2 {[%clk
0:01:16.3]} 41. Rxe3 {[%clk 0:00:14.1]} 41... Rxh2 {[%clk 0:01:15.5]} 42. Kg3
{[%clk 0:00:14.4]} 42... Ra2 {[%clk 0:01:14.5]} 43. Rf3 {[%clk 0:00:13.9]} 43...
Kg7 {[%clk 0:01:14.1]} 44. Rf2 {[%clk 0:00:14.3]} 44... Ra3+ {[%clk 0:01:13.3]}
45. Kg2 {[%clk 0:00:14.7]} 45... Kg6 {[%clk 0:01:12.1]} 46. Rf3 {[%clk
0:00:15.2]} 46... Ra2+ {[%clk 0:01:12.2]} 47. Rf2 {[%clk 0:00:15.6]} 47... Ra4
{[%clk 0:01:12.7]} 48. Rf3 {[%clk 0:00:15.8]} 48... h5 {[%clk 0:01:12.1]} 49.
Rf8 {[%clk 0:00:15.4]} 49... h4 {[%clk 0:01:10.9]} 50. Rh8 {[%clk 0:00:15.2]}
50... Kg5 {[%clk 0:01:07.6]} 51. Kh3 {[%clk 0:00:15.2]} 51... Ra3+ {[%clk
0:01:07]} 52. Kg2 {[%clk 0:00:15.2]} 52... Ra2+ {[%clk 0:01:06.5]} 53. Kh3
{[%clk 0:00:14.9]} 53... Ra3+ {[%clk 0:01:07]} 54. Kg2 {[%clk 0:00:14.9]} 54...
Kg4 {[%clk 0:01:07]} 55. Rg8+ {[%clk 0:00:14.8]} 55... Kf4 {[%clk 0:01:06.6]}
56. Rf8+ {[%clk 0:00:15]} 56... Kg5 {[%clk 0:01:05.3]} 57. Rg8+ {[%clk
0:00:15.2]} 57... Kf5 {[%clk 0:01:05.4]} 58. Rh8 {[%clk 0:00:14.4]} 58... Rg3+
{[%clk 0:01:02.8]} 59. Kh2 {[%clk 0:00:14.1]} 59... Kg4 {[%clk 0:01:02.6]} 60.
Rg8+ {[%clk 0:00:12.1]} 60... Kf3 {[%clk 0:01:02.5]} 61. Rh8 {[%clk 0:00:12.2]}
61... Rg4 {[%clk 0:00:59.1]} 62. Kh3 {[%clk 0:00:11.9]} 62... Rg1 {[%clk
0:00:59.1]} 63. Rf8+ {[%clk 0:00:11.4]} 63... Ke4 {[%clk 0:00:58.7]} 64. Kxh4
{[%clk 0:00:11.1]} 64... Rh1+ {[%clk 0:00:57.5]} 65. Kg3 {[%clk 0:00:11.3]}
1/2-1/2